Cogmind - Beta 13 @@@ ROGUE MODE // 2024.06.17 @ 20:07:13 Player: H3-RMN Result: Destroyed by D-53 Grenadier with Mini Grenade Launcher Performance ------------- Evolutions (0) 0 Regions Visited (2) 400 Robots Destroyed (18) 90 Value Destroyed (354) 354 Prototype IDs (2) 40 Alien Tech Used (0) 0 Bonus (0) 0 TOTAL SCORE: 884 Bonus ------- None Cogmind --------- Core Integrity 0/250 Matter 248/300 Energy 98/100 System Corruption 6% Temperature Cool (0) Movement Core (50) Location -10/Mines Parts ------- > --- POWER (1) -------- (None) > --- PROPULSION (2) --- (None) > --- UTILITY (2) ------ (None) > --- WEAPON (2) ------- (None) > --- INVENTORY (5) ---- Small Storage Unit Machine Analyzer Transport Network Coupler Small Laser Light Assault Rifle Peak State ------------ > --- POWER ------------ Light Ion Engine > --- PROPULSION ------- Light Treads Wheel > --- UTILITY ---------- Small Storage Unit Improved Terrain Scanner > --- WEAPON ----------- Small Laser Assault Rifle > --- INVENTORY -------- Ion Engine Light Treads Compact Wheel EM Pulse Gun [Rating: 9] Favorites ----------- Power Light Ion Engine Engine Light Ion Engine Propulsion Light Treads Treads Light Treads Wheel Wheel Utility Small Storage Unit Device Seismic Detector Storage Small Storage Unit Processor Signal Interpreter Protection Light Armor Plating Weapon Assault Rifle Energy Gun Small Laser Ballistic Gun Assault Rifle Launcher Grenade Launcher Build | -11 -10 -10 ------- Run | Yrd Mat Min Slots Evolved . | . . . Power . | . . . Propulsion . | . . . Utility . | . . . Weapon . | . . . Parts Attached 14 | 7 5 2 Power 1 | 1 . . Engine 1 | 1 . . Core . | . . . Reactor . | . . . Propulsion 3 | 2 1 . Treads 1 | 1 . . Leg . | . . . Wheel 2 | 1 1 . Hover . | . . . Flight . | . . . Utility 6 | 2 4 . Device 2 | 1 1 . Storage 2 | 1 1 . Processor 1 | . 1 . Hackware . | . . . Protection 1 | . 1 . Artifact . | . . . Weapon 4 | 2 . 2 Energy Gun 1 | 1 . . Energy Cannon . | . . . Ballistic Gun 1 | 1 . . Ballistic Cannon . | . . . Launcher 2 | . . 2 Special Weapon . | . . . Impact Weapon . | . . . Slashing Weapon . | . . . Piercing Weapon . | . . . Special Melee Weapon . | . . . Unidentified Prototypes . | . . . Parts Lost 10 | . 3 7 Power 1 | . . 1 Propulsion 3 | . 1 2 Utility 3 | . 2 1 Weapon 3 | . . 3 Highest Loss Streak 7 | . 2 7 To Critical Strikes . | . . . Average Slot Usage (%) 93 | . 97 50 Engine 13 | . 14 7 Treads 13 | . 14 7 Wheel 13 | . 13 7 Device 6 | . 7 . Storage 13 | . 14 7 Processor 1 | . . 7 Protection 3 | . 3 . Energy Gun 12 | . 14 2 Ballistic Gun 13 | . 14 7 Naked Turns 29 | . . 29 Heaviest Build 88 | 12 86 88 Greatest Support 10 | 10 10 10 Greatest Overweight (x) 8 | 1 8 8 Average Overweight (x) 1 | . 1 1 Largest Inventory Capacity 25 | 8 25 25 Average Capacity 9 | 7 9 16 Most Carried 8 | 7 8 8 Average Carried 7 | 3 7 6 Final Capacity 25 | 8 25 5 Final Carried 8 | 7 8 5 Class Distribution -------------------- 100% | Mutant Dominant Class ---------------- Mutant | -10/Materials Mutant | -10/Mines Resources | -11 -10 -10 ----------- Run | Yrd Mat Min Matter Collected 454 | 237 204 13 Remotely . | . . . Salvage Created 559 | 14 492 53 Parts 42 | 5 35 2 Haulers Intercepted 1 | . 1 . Recyclers Shooed . | . . . Parts Field Recycled . | . . . Retrieved Matter . | . . . Parts Self-Destructed . | . . . Prevented . | . . . Kills | -11 -10 -10 ------- Run | Yrd Mat Min Combat Hostiles Destroyed 20 | . 10 10 Guns 10 | . 10 . AOE 10 | . . 10 Classes Destroyed 8 | 1 6 1 Worker 2 | . 2 . Tunneler 1 | 1 . . Hauler 1 | . 1 . Mechanic 1 | . 1 . Watcher 1 | . 1 . Swarmer 5 | . 3 2 Grunt 7 | . 7 . Assembled 8 | . . 8 Best Kill Streak 10 | 1 3 10 Combat Bots Only 10 | . 3 10 Max Kills in Single Turn 4 | 1 2 4 Gunslinging 1 | . 1 . Exploded 4 | . . 4 Melee . | . . . Uniques/NPCs Destroyed . | . . . Combat | -11 -10 -10 -------- Run | Yrd Mat Min Hostile Shots Fired 84 | . 45 39 Missed 27 | . 13 14 Damage Taken 949 | . 366 583 Core 259 | . 34 225 Absorbed by Shields . | . . . Core Remaining (%) 100 | 100 . . Volleys Fired 55 | 1 48 6 Largest 2 | 2 2 1 Hottest 60 | 60 60 30 Shots Fired 104 | 2 96 6 Gun 98 | 2 96 . Cannon . | . . . Launcher 6 | . . 6 Special . | . . . Kinetic 49 | 1 48 . Thermal 49 | 1 48 . Explosive 6 | . . 6 Electromagnetic . | . . . Robot Hit Streak 12 | 2 12 4 Robot Miss Streak 5 | . 5 2 Penetration Max . | . . . Secondary Targets 2 | . 2 . Max Gunslinging Chain 1 | . 1 . Shots Hit Robots 74 | 2 68 4 Core Hits 44 | 1 26 17 Critical Kills . | . . . Critical Parts Destroyed . | . . . Critical Strikes . | . . . Melee Attacks . | . . . Impact . | . . . Slashing . | . . . Piercing . | . . . Sneak Attacks . | . . . Combat Hostiles . | . . . Follow-up Attacks . | . . . Damage Inflicted 1574 | 24 858 692 Guns 882 | 24 858 . Cannons . | . . . Explosions 692 | . . 692 Melee . | . . . Ramming . | . . . Kinetic 498 | 14 484 . Thermal 384 | 10 374 . Explosive 692 | . . 692 Electromagnetic . | . . . Impact . | . . . Slashing . | . . . Piercing . | . . . Highest Corruption 6 | . 1 6 Average Corruption 1 | . 1 3 Corruption Purged . | . . . Corruption Blocked . | . . . Effects 6 | . 4 2 Message Errors 1 | . . 1 Matter Fused 1 | . 1 . Heat Flow Errors 1 | . . 1 Energy Discharges 2 | . 2 . Alerts 1 | . 1 . Overload Shots . | . . . Overflow Damage 2 | . . 2 Projectiles . | . . . Explosions 2 | . . 2 Melee . | . . . Knockbacks . | . . . Impact . | . . . Kinetic . | . . . Secondary . | . . . Self-Inflicted Damage 128 | . . 128 Shots 4 | . . 4 Rammed . | . . . Targets Rammed . | . . . Kicked . | . . . Crushed . | . . . Highest Temperature 115 | . 115 88 Average Temperature 32 | . 31 50 Received Heat Transfer 156 | . 156 . Siege Activations . | . . . Robots Corrupted . | . . . Combat Hostiles . | . . . Parts Fried . | . . . Impact Corruptions . | . . . Robots Melted . | . . . Combat Hostiles . | . . . Parts Melted . | . . . Heat Transferred 850 | 25 825 . Parts Sabotaged . | . . . Parts Stolen . | . . . Parts Stripped . | . . . Power Chain Reactions . | . . . Alert | -11 -10 -10 ------- Run | Yrd Mat Min Peak Influence 232 | 5 232 122 Initial 53 | . 3 53 Average 76 | 2 84 75 Maximum Alert Level 1 | . 1 . Low Security (%) 95 | 100 93 100 Level 1 4 | . 6 . Level 2 . | . . . Level 3 . | . . . Level 4 . | . . . Level 5 . | . . . High Security . | . . . Max Security . | . . . Squads Dispatched 2 | . 2 . Investigation 2 | . 2 . Extermination . | . . . Reinforcement . | . . . Assault . | . . . Garrison . | . . . Intercept . | . . . Searches Triggered . | . . . Construction Impeded . | . . . Haulers Reinforced . | . . . Active Scanning Responses . | . . . Cargo Convoy Interrupts . | . . . Stealth | -11 -10 -10 --------- Run | Yrd Mat Min Distress Signals 3 | . 3 . Communications Jammed . | . . . Distress Signals . | . . . Times Spotted 45 | . 20 25 Peak Tracking Total 18 | . 4 18 Tactical Retreats 2 | . . 2 Traps | -11 -10 -10 ------- Run | Yrd Mat Min Traps Triggered 1 | . 1 . Indirectly . | . . . Trap Hack Attempts . | . . . Triggered . | . . . Disarmed . | . . . Reprogrammed . | . . . Reused . | . . . Traps Extracted . | . . . Installed . | . . . Triggered . | . . . Machines | -11 -10 -10 ---------- Run | Yrd Mat Min Machines Disabled . | . . . Max in Single Turn . | . . . Machines Repaired . | . . . Machines Dismantled . | . . . Machines Sabotaged . | . . . Overloaded Fab Kills . | . . . Hacking | -11 -10 -10 --------- Run | Yrd Mat Min Machines Accessed 5 | . 5 . Terminals 4 | . 4 . Fabricators . | . . . Repair Stations . | . . . Recycling Units 1 | . 1 . Scanalyzers . | . . . Garrison Access . | . . . Total Hacks 13 | . 13 . Successful 5 | . 5 . Failed 8 | . 8 . Catastrophic 2 | . 2 . Database Lockouts . | . . . Manual 4 | . 4 . Terminals 9 | . 9 . Fabricators . | . . . Repair Stations . | . . . Recycling Units 4 | . 4 . Scanalyzers . | . . . Garrison Access . | . . . Terminal Hacks 2 | . 2 . Robot Analysis 1 | . 1 . Prototype ID Bank 1 | . 1 . Fabricator Hacks . | . . . Repair Station Hacks . | . . . Recycling Unit Hacks 2 | . 2 . Report Inventory 1 | . 1 . Retrieve Components 1 | . 1 . Scanalyzer . | . . . Garrison Access Hacks . | . . . Unauthorized Hacks 1 | . 1 . Terminals . | . . . Fabricators . | . . . Repair Stations . | . . . Recycling Units 1 | . 1 . Tunnel 1 | . 1 . Scanalyzers . | . . . Garrison Access . | . . . Data Cores Recovered . | . . . Used . | . . . Hacking Detections 4 | . 4 . Full Trace Events 1 | . 1 . Feedback Events . | . . . Feedback Blocked . | . . . Robot Schematics Acquired . | . . . Robots Built . | . . . Authchips . | . . . Time . | . . . Total Robot Build Rating . | . . . Part Schematics Acquired . | . . . Parts Built . | . . . Authchips . | . . . Time . | . . . Total Part Build Rating . | . . . Parts Repaired . | . . . Time . | . . . Parts Recycled . | . . . Recycled Matter . | . . . Retrieved Matter . | . . . Retrieved Components 10 | . 10 . Parts Scanalyzed . | . . . Part Schematics Acquired . | . . . Parts Damaged . | . . . Bothacking | -11 -10 -10 ------------ Run | Yrd Mat Min Used RIF Installer . | . . . Robots Hacked . | . . . Non-combat . | . . . Combat . | . . . Robot Hacks Applied . | . . . Relay Couplers Released . | . . . Fabnet Peak Effective % . | . . . Robots Rewired . | . . . Allies Hacked . | . . . Hacks Repelled . | . . . Allies | -11 -10 -10 -------- Run | Yrd Mat Min Total Allies . | . . . Largest Group . | . . . Highest-Rated Group . | . . . Highest-Rated Ally . | . . . Total Orders . | . . . Ally Attacks . | . . . Total Damage . | . . . Kills . | . . . Allies Corrupted . | . . . Allies Melted . | . . . Intel | -11 -10 -10 ------- Run | Yrd Mat Min Robot Analysis Total 1 | . 1 . Derelict Logs Recovered 1 | . . 1 Drone Launches . | . . . Drone Recoveries . | . . . Exploration | -11 -10 -10 ------------- Run | Yrd Mat Min Turns Passed 726 | 64 596 66 Spaces Moved 507 | 49 389 69 Core 63 | 5 . 58 Treads . | . . . Legs . | . . . Wheels 444 | 44 389 11 Hover . | . . . Flight . | . . . Fastest Speed 50 | 50 95 50 Average Speed 95 | 87 100 73 Slowest Speed 200 | 95 200 200 Overloaded Moves . | . . . Propulsion Burnouts . | . . . Robots Hopped . | . . . Cave-ins Triggered . | . . . Exploration Rate (%) 31 | 3 61 29 Regions Visited 2 Branch Regions 1 Pre-discovered Areas 1 | . 1 . Known Exits Taken 1 | . 1 . Unknown Exits Taken 1 | 1 . . Scrap Searched . | . . . Spaces Dug . | . . . Terrain Destroyed 31 | . . 31 Melee . | . . . Projectile . | . . . AOE 31 | . . 31 Terrain Rammed . | . . . Walls Destroyed . | . . . Machines Disabled . | . . . Actions | -11 -10 -10 --------- Run | Yrd Mat Min Total 644 | 64 502 78 Wait 49 | 1 48 . Move 505 | 48 388 69 Hop . | . . . Pick Up 14 | 7 7 . Fast Attach 9 | 7 2 . Attach 3 | . 2 1 Detach 1 | . 1 . Swap 2 | . 1 1 Drop 6 | . 5 1 Fire 55 | 1 48 6 Melee . | . . . Ram . | . . . Kick . | . . . Crush . | . . . Escape Stasis . | . . . Rewire . | . . . Trap . | . . . Miscellaneous . | . . . Route ------- -11/Scrapyard -10/Materials (discovered 3 exits: [*Mat x2] / *Min) -10/Mines History --------- Turn | Location | Event 12 | -11/Scrapyard | Discovered new exit (range 15) 65 | -11/Scrapyard | Entered Materials 281 | -10/Materials | Discovered new exit (range 16) 335 | -10/Materials | Build established: Mutant 610 | -10/Materials | Discovered new exit (range 6) 643 | -10/Materials | Discovered new exit (range 7) 659 | -10/Materials | Identified exit to Mines 661 | -10/Materials | Entered Mines 678 | -10/Mines | Assembled infested the area 696 | -10/Mines | Core integrity fell below 50% 699 | -10/Mines | Core integrity fell below 20% 714 | -10/Mines | Destroyed 10 combat bots 727 | -10/Mines | Learned Materials stockpile data 727 | -10/Mines | Destroyed by D-53 Grenadier with Mini Grenade Launcher Last Messages --------------- 00691_ as-65336 destroyed. 00693_ as-37155 destroyed. 00693_ as-90777 destroyed. 00693_ as-67954 destroyed. 00693_ as-84574 destroyed. 00693_ Assault Rifle destroyed. 00694_ Lgt. Treads destroyed. 00695_ Grenade Launcher destroyed. 00695_ Destroyed Grenade Launcher. 00695_ Lgt. Ion Engine destroyed. 00695_ Destroyed Lgt. Ion Engine. 00696_ Wheel destroyed. 00698_ Grenade Launcher destroyed. 00698_ System corrupted by crushing effect (+2). 00698_ Dropped Huge Storage Unit. 00700_ The unstable cave ceiling collapses. 00707_ System corrupted: Heat flow error (+113). 00719_ as-20186 destroyed. 00727_ Acquired derelict log, extracted data. Data stored: Materials stockpile data. Map ----- +----------------------------------------------------+ | ???????????????????????????????????????????? | | ???????#############?????########????###???? | | ??????## ####### ##??# ##??? | | ??????# % ### #??? | | ?????## ### #??? #??? | | ??#### ##?####### #???? % #??? | | ?## #????????# #????# #??? | | ## ##????????# ###### #???? | | # ##?????????# #???? | | # ##??????????######## #???? | | ##?# #??????????????????## ##???? | | ???# #???????????????????##### ###????? | | ??## #??????????????##???????## ##??????? | | ?## ##????????????? #???????# #???????? | | ## ##???????????? ???????# #???????? | | ##???????????? ???????# ##??????? | | #######?????? ???????## #####??? | | #?????? ???????## ##?? | | ## ## # ##?????# ?????#### #?? | | ### #????## ?????# #?? | | ##?# ##??## ?????# ##?? | | #??# ![ ### ?????# ### ##??? | | #??## = ##???# #??####???? | | #??## % d d ##### #?????????? | | #??# ### #?????????? | | #?# # # @ #?????????? | | #?# < ##########?????????? | | # #?## #u ## ?????????????????????? | | ## ##??###### ####?##????????????????????? | | ??###?????????# #??????????????????????????? | | ??????????????? #??????????????????????????? | | ????????????????#??????????????????????????? | | ???????????????????????????????????????????? | | ???????????????????????????????????????????? | | ???????????????????????????????????????????? | | ???????????????????????????????????????????? | | ???????????????????????????????????????????? | | ???????????????????????????????????????????? | | ???????????????????????????????????????????? | | ???????????????????????????????????????????? | | ???????????????????????????????????????????? | | ???????????????????????????????????????????? | | ???????????????????????????????????????????? | | ???????????????????????????????????????????? | | ???????????????????????????????????????????? | | ???????????????????????????????????????????? | | ???????????????????????????????????????????? | | ???????????????????????????????????????????? | | ???????????????????????????????????????????? | | ???????????????????????????????????????????? | +----------------------------------------------------+ Best States ------------- Heat Dissipation 25 Energy Generation 10 Energy Capacity 125 Matter Stores 300 Matter Capacity 300 Sight Range 16 Terrain Scan Range 16 Terrain Scan Density 10 Armor Coverage 150 Evasion (%) 50 Recoil Reduction 1 Item Schematics ----------------- None Robot Schematics ------------------ None Fabricated ------------ Nothing Alien Tech Used ----------------- None Achievements -------------- None Challenges ------------ None Game ------ Seed DeuteriumIntegrityVibroblade Manual? 0 Play Time 00:10:19 Cumulative 427.2 hours Start 2024.06.17 @ 19:55:55 End 2024.06.17 @ 20:07:13 Sessions 1 Manual Loads 0 Difficulty Rogue Special Mode None Game No. 166 Rogue 163 Adventurer 3 Explorer 0 Win Type - Total 7 Types 4/1/0/1/0/1/0/0/0 Lore% 80 Gallery% 85 Achievement% 86 Wizard Run 0 Options --------- Layout 2 ASCII 0 Keyboard 0 Movement Numpad Keybinds 0 Fullscreen 2 Font 24/Smallcaps Map View 50x44 Zoom Use 0% Tactical HUD 1 Map Filters NONE Filters NONE Steam 1 RUN: 1519d102-c237-41ac-aec0-16e551106049